Cogmind - Beta 13 @@@ ROGUE MODE // 2024.05.07 @ 18:30:48 Player: Bace Troncons Result: Self-destructed Performance ------------- Evolutions (1) 500 Regions Visited (2) 400 Robots Destroyed (20) 100 Value Destroyed (398) 398 Prototype IDs (1) 20 Alien Tech Used (0) 0 Bonus (0) 0 TOTAL SCORE: 1418 Bonus ------- None Cogmind --------- Core Integrity 357/400 Matter 267/300 Energy 160/160 System Corruption 0% Temperature Cool (0) Movement Flying (37) Location -9/Materials Parts ------- > --- POWER (1) -------- Light Nuclear Core > --- PROPULSION (2) --- Improved Flight Unit Improved Flight Unit > --- UTILITY (2) ------ Structural Scanner > --- WEAPON (4) ------- Assault Rifle Hammer > --- INVENTORY (5) ---- Improved Flight Unit Transport Network Coupler Utility Shielding Mini Grenade Launcher Datajack Peak State ------------ > --- POWER ------------ Light Nuclear Core > --- PROPULSION ------- Improved Flight Unit Improved Flight Unit > --- UTILITY ---------- Structural Scanner > --- WEAPON ----------- Assault Rifle Mini Grenade Launcher Hammer > --- INVENTORY -------- Improved Flight Unit Transport Network Coupler Utility Shielding Datajack [Rating: 14] Favorites ----------- Power Light Nuclear Core Engine Light Ion Engine Power Core Light Nuclear Core Propulsion Light Treads Treads Light Treads Flight Unit Improved Flight Unit Utility Small Storage Unit Device Structural Scanner Storage Small Storage Unit Processor Machine Analyzer Weapon Assault Rifle Ballistic Gun Assault Rifle Ballistic Cannon Light Cannon Launcher Mini Grenade Launcher Impact Weapon Hammer Build | -11 -10 -9 ------- Run | Yrd Mat Mat Slots Evolved 2 | . . 2 Power . | . . . Propulsion . | . . . Utility . | . . . Weapon 2 | . . 2 Parts Attached 21 | 6 11 4 Power 3 | 1 2 . Engine 2 | 1 1 . Core 1 | . 1 . Reactor . | . . . Propulsion 7 | 2 3 2 Treads 5 | 2 3 . Leg . | . . . Wheel . | . . . Hover . | . . . Flight 2 | . . 2 Utility 4 | 1 3 . Device 1 | . 1 . Storage 2 | 1 1 . Processor 1 | . 1 . Hackware . | . . . Protection . | . . . Artifact . | . . . Weapon 7 | 2 3 2 Energy Gun . | . . . Energy Cannon . | . . . Ballistic Gun 4 | 2 2 . Ballistic Cannon 1 | . 1 . Launcher 1 | . . 1 Special Weapon . | . . . Impact Weapon 1 | . . 1 Slashing Weapon . | . . . Piercing Weapon . | . . . Special Melee Weapon . | . . . Unidentified Prototypes 1 | . . 1 Parts Lost 3 | . 3 . Power 1 | . 1 . Propulsion 2 | . 2 . Utility . | . . . Weapon . | . . . Highest Loss Streak 2 | . 2 . To Critical Strikes . | . . . Average Slot Usage (%) 87 | . 88 70 Engine 5 | . 5 . Core 6 | . 6 11 Treads 20 | . 20 11 Device 4 | . 3 11 Storage 13 | . 14 5 Processor 8 | . 8 . Ballistic Gun 21 | . 21 11 Ballistic Cannon 6 | . 6 7 Naked Turns . | . . . Heaviest Build 51 | 13 51 51 Greatest Support 40 | 40 40 40 Greatest Overweight (x) 4 | 1 4 2 Average Overweight (x) . | . . . Largest Inventory Capacity 20 | 8 20 20 Average Capacity 10 | 7 10 12 Most Carried 11 | 3 9 11 Average Carried 7 | 2 7 7 Final Capacity 20 | 8 20 5 Final Carried 9 | 3 9 5 Class Distribution -------------------- 100% | Mutant Dominant Class ---------------- Mutant | -10/Materials Mutant | -9/Materials Resources | -11 -10 -9 ----------- Run | Yrd Mat Mat Matter Collected 715 | 181 482 52 Remotely . | . . . Salvage Created 674 | . 578 96 Parts 41 | . 39 2 Haulers Intercepted 4 | . 2 2 Recyclers Shooed . | . . . Parts Field Recycled . | . . . Retrieved Matter . | . . . Parts Self-Destructed . | . . . Prevented . | . . . Kills | -11 -10 -9 ------- Run | Yrd Mat Mat Combat Hostiles Destroyed 11 | . 11 . Guns 11 | . 11 . Classes Destroyed 7 | . 7 . Worker 1 | . 1 . Hauler 4 | . 2 2 Mechanic 1 | . 1 . Operator 1 | . 1 . Watcher 2 | . 2 . Swarmer 3 | . 3 . Grunt 8 | . 8 . Best Kill Streak 3 | . 3 1 Combat Bots Only 3 | . 3 . Max Kills in Single Turn 1 | . 1 1 Gunslinging . | . . . Exploded . | . . . Melee . | . . . Uniques/NPCs Destroyed . | . . . Combat | -11 -10 -9 -------- Run | Yrd Mat Mat Hostile Shots Fired 114 | . 98 16 Missed 30 | . 19 11 Damage Taken 1034 | . 956 78 Core 231 | . 188 43 Absorbed by Shields . | . . . Regen/Repaired (Parts) 168 | . 168 . Core Remaining (%) 62 | 100 24 . Volleys Fired 77 | . 75 2 Largest 2 | . 2 2 Hottest 55 | . 55 55 Shots Fired 154 | . 150 4 Gun 139 | . 137 2 Cannon 15 | . 13 2 Launcher . | . . . Special . | . . . Kinetic 154 | . 150 4 Thermal . | . . . Explosive . | . . . Electromagnetic . | . . . Robot Hit Streak 13 | . 13 3 Robot Miss Streak 6 | . 6 1 Penetration Max . | . . . Secondary Targets 1 | . 1 . Max Gunslinging Chain 1 | . 1 . Shots Hit Robots 107 | . 99 8 Core Hits 38 | . 37 1 Critical Kills . | . . . Critical Parts Destroyed 3 | . 1 2 Critical Strikes 4 | . 2 2 Destroy 1 | . 1 . Blast 1 | . 1 . Smash 2 | . . 2 Melee Attacks 6 | . . 6 Impact 6 | . . 6 Slashing . | . . . Piercing . | . . . Sneak Attacks 1 | . . 1 Combat Hostiles . | . . . Follow-up Attacks . | . . . Damage Inflicted 1319 | . 1122 197 Guns 956 | . 942 14 Cannons 215 | . 180 35 Explosions . | . . . Melee 148 | . . 148 Ramming . | . . . Kinetic 1171 | . 1122 49 Thermal . | . . . Explosive . | . . . Electromagnetic . | . . . Impact 148 | . . 148 Slashing . | . . . Piercing . | . . . Highest Corruption . | . . . Average Corruption . | . . . Corruption Purged . | . . . Corruption Blocked . | . . . Overload Shots . | . . . Overflow Damage 58 | . . 58 Projectiles . | . . . Explosions . | . . . Melee 58 | . . 58 Knockbacks 2 | . 2 . Impact . | . . . Kinetic 2 | . 2 . Secondary . | . . . Self-Inflicted Damage . | . . . Shots . | . . . Rammed . | . . . Targets Rammed . | . . . Kicked . | . . . Crushed . | . . . Highest Temperature 24 | . 24 . Average Temperature 6 | . 6 . Received Heat Transfer 345 | . 345 . Siege Activations . | . . . Robots Corrupted . | . . . Combat Hostiles . | . . . Parts Fried 1 | . . 1 Impact Corruptions 2 | . . 2 Robots Melted . | . . . Combat Hostiles . | . . . Parts Melted . | . . . Heat Transferred . | . . . Parts Sabotaged . | . . . Parts Stolen . | . . . Parts Stripped . | . . . Power Chain Reactions . | . . . Alert | -11 -10 -9 ------- Run | Yrd Mat Mat Peak Influence 187 | . 187 61 Initial 2 | . . 2 Average 38 | . 41 18 Maximum Alert Level . | . . . Low Security (%) 100 | 100 100 100 Level 1 . | . . . Level 2 . | . . . Level 3 . | . . . Level 4 . | . . . Level 5 . | . . . High Security . | . . . Max Security . | . . . Squads Dispatched 1 | . 1 . Investigation . | . . . Extermination . | . . . Reinforcement 1 | . 1 . Assault . | . . . Garrison . | . . . Intercept . | . . . Searches Triggered . | . . . Construction Impeded . | . . . Haulers Reinforced . | . . . Active Scanning Responses . | . . . Cargo Convoy Interrupts . | . . . Stealth | -11 -10 -9 --------- Run | Yrd Mat Mat Distress Signals 2 | . 2 . Communications Jammed . | . . . Distress Signals . | . . . Times Spotted 30 | . 27 3 Peak Tracking Total 5 | . 5 5 Tactical Retreats . | . . . Traps | -11 -10 -9 ------- Run | Yrd Mat Mat Traps Triggered 3 | . 3 . Indirectly . | . . . Trap Hack Attempts . | . . . Triggered . | . . . Disarmed . | . . . Reprogrammed . | . . . Reused . | . . . Traps Extracted . | . . . Installed . | . . . Triggered . | . . . Machines | -11 -10 -9 ---------- Run | Yrd Mat Mat Machines Disabled . | . . . Max in Single Turn . | . . . Machines Repaired . | . . . Machines Dismantled . | . . . Machines Sabotaged . | . . . Overloaded Fab Kills . | . . . Hacking | -11 -10 -9 --------- Run | Yrd Mat Mat Machines Accessed 8 | . 8 . Terminals 7 | . 7 . Fabricators . | . . . Repair Stations 1 | . 1 . Recycling Units . | . . . Scanalyzers . | . . . Garrison Access . | . . . Total Hacks 25 | . 25 . Successful 14 | . 14 . Failed 11 | . 11 . Catastrophic 2 | . 2 . Database Lockouts . | . . . Manual 7 | . 7 . Terminals 21 | . 21 . Fabricators . | . . . Repair Stations 4 | . 4 . Recycling Units . | . . . Scanalyzers . | . . . Garrison Access . | . . . Terminal Hacks 10 | . 10 . Record 4 | . 4 . Robot Analysis 1 | . 1 . Emergency Access Points 2 | . 2 . Locate Traps 1 | . 1 . Hauler Manifests 1 | . 1 . Zone Layout 1 | . 1 . Fabricator Hacks . | . . . Repair Station Hacks 4 | . 4 . Scan Component 2 | . 2 . Repair 2 | . 2 . Recycling Unit Hacks . | . . . Scanalyzer . | . . . Garrison Access Hacks . | . . . Unauthorized Hacks . | . . . Terminals . | . . . Fabricators . | . . . Repair Stations . | . . . Recycling Units . | . . . Scanalyzers . | . . . Garrison Access . | . . . Data Cores Recovered . | . . . Used . | . . . Hacking Detections 7 | . 7 . Full Trace Events 2 | . 2 . Feedback Events . | . . . Feedback Blocked . | . . . Robot Schematics Acquired . | . . . Robots Built . | . . . Authchips . | . . . Time . | . . . Total Robot Build Rating . | . . . Part Schematics Acquired . | . . . Parts Built . | . . . Authchips . | . . . Time . | . . . Total Part Build Rating . | . . . Parts Repaired 2 | . 2 . Time 52 | . 52 . Parts Recycled . | . . . Recycled Matter . | . . . Retrieved Matter . | . . . Retrieved Components . | . . . Parts Scanalyzed . | . . . Part Schematics Acquired . | . . . Parts Damaged . | . . . Bothacking | -11 -10 -9 ------------ Run | Yrd Mat Mat Used RIF Installer . | . . . Robots Hacked . | . . . Non-combat . | . . . Combat . | . . . Robot Hacks Applied . | . . . Relay Couplers Released . | . . . Fabnet Peak Effective % . | . . . Robots Rewired . | . . . Allies Hacked . | . . . Hacks Repelled . | . . . Allies | -11 -10 -9 -------- Run | Yrd Mat Mat Total Allies . | . . . Largest Group . | . . . Highest-Rated Group . | . . . Highest-Rated Ally . | . . . Total Orders . | . . . Ally Attacks . | . . . Total Damage . | . . . Kills . | . . . Allies Corrupted . | . . . Allies Melted . | . . . Intel | -11 -10 -9 ------- Run | Yrd Mat Mat Robot Analysis Total 1 | . 1 . Derelict Logs Recovered . | . . . Drone Launches . | . . . Drone Recoveries . | . . . Exploration | -11 -10 -9 ------------- Run | Yrd Mat Mat Turns Passed 2145 | 68 1978 99 Spaces Moved 977 | 38 880 59 Core 51 | 4 47 . Treads 885 | 34 833 18 Legs . | . . . Wheels . | . . . Hover . | . . . Flight 41 | . . 41 Fastest Speed 37 | 50 150 37 Average Speed 178 | 151 184 107 Slowest Speed 320 | 160 320 240 Overloaded Moves . | . . . Propulsion Burnouts . | . . . Robots Hopped . | . . . Cave-ins Triggered . | . . . Exploration Rate (%) 37 | 4 99 9 Regions Visited 2 Branch Regions . Pre-discovered Areas . | . . . Known Exits Taken . | . . . Unknown Exits Taken 2 | 1 1 . Scrap Searched . | . . . Spaces Dug . | . . . Terrain Destroyed . | . . . Melee . | . . . Projectile . | . . . AOE . | . . . Terrain Rammed . | . . . Walls Destroyed . | . . . Machines Disabled . | . . . Actions | -11 -10 -9 --------- Run | Yrd Mat Mat Total 1226 | 46 1098 82 Wait 111 | . 111 . Move 975 | 37 879 59 Hop . | . . . Pick Up 19 | 3 13 3 Fast Attach 15 | 6 6 3 Attach 2 | . 1 1 Detach 3 | . . 3 Swap 4 | . 4 . Drop 14 | . 9 5 Fire 77 | . 75 2 Melee 6 | . . 6 Ram . | . . . Kick . | . . . Crush . | . . . Escape Stasis . | . . . Rewire . | . . . Trap . | . . . Miscellaneous . | . . . Route ------- -11/Scrapyard -10/Materials (discovered 5 exits: [*Mat x3] / [*Min x2]) -9/Materials History --------- Turn | Location | Event 9 | -11/Scrapyard | Discovered new exit (range 14) 69 | -11/Scrapyard | Entered Materials 271 | -10/Materials | Discovered new exit (range 15) 304 | -10/Materials | Build established: Mutant 423 | -10/Materials | Repaired Assault Rifle 451 | -10/Materials | Repaired Lgt. Treads 627 | -10/Materials | Discovered new exit (range 11) 831 | -10/Materials | Core integrity fell below 50% 982 | -10/Materials | Discovered new exit (range 5) 1075 | -10/Materials | Discovered new exit (range 10) 1529 | -10/Materials | Discovered new exit (range 14) 2047 | -10/Materials | Entered another Materials area 2047 | -9/Materials | Evolved 2 slots: Weapon x2 2146 | -9/Materials | Self-destructed Last Messages --------------- 02116_ Acquired 51 matter. 02116_ Acquired 1 matter. 02117_ Acquired Transport Network Coupler. 02117_ K-01 Serf collects debris. 02119_ Dropped Grenade Launcher. 02120_ Acquired Mni. Grenade Launcher. 02125_ Sneak attack on A-02 Transporter. 02140_ A-02 Transporter suffers critical hit (Smash). 02140_ Destroyed Transport Network Coupler. 02140_ A-02 Transporter system corrupted by crushing effect. 02143_ A-02 Transporter suffers critical hit (Smash). 02143_ Destroyed Ion Engine. 02143_ A-02 Transporter system corrupted by crushing effect. 02144_ A-02 Transporter system terminally corrupted. 02144_ Weight Redist. System fried. Map ----- +----------------------------------------------------+ | ?????????????????????????????????????????????????? | | ????????????????????????????????????? ##?????????? | | ????????????????????????????????????? # ?????????? | | ????????????????????????????????????? + ?????????? | | ???????????????????????????????????? # ?????????? | | ??????????????????####?????????????? # ?????????? | | ????????????????################### # ?????????? | | ????????????????#### ############## # ?????????? | | ????????????????## # ##?????????? | | ????????????????## """ |! # ????????????? | | ????????????????## """ = # ??????????????? | | ????????????????## """ # ##??????????????? | | ???????????????? # ] # ############????? | | ???????????? ? # + ############????? | | ????????????## ? # # [ ## !**##????? | | ????????????## ###/######### [ ##"" !**##????? | | ????????????## ### ######## [ = #"Y ** ##????? | | ????????????## %!!*]! #"" ##????? | | ????????????## g!!= / ##????? | | ????????????## Y # [ """ ##????? | | ????????????############Y ## # """ ##????? | | ????????????############ #### ### """ ##????? | | ??????????????????????## #### ### ##????? | | ??????????????????????## #### ### #########????? | | ?????????????????????? #! #### #############????? | | ?????????????????????? #!@ ####+######???????????? | | ?????????????????????? #%!!### ##???????????? | | ?????????????????????? #!! ### ##???????????? | | ?????????????????????? # ### ##???????????? | | ?????????????????????? # ### ##???????????? | | ?????????????????????? # ### ##???????????? | | ?????????????????????? # ### ###??????????? | | ??????????????????????## ######+#####??????????? | | ??????????????????? ##??????????? | | ??????????????????? # ??????????? | | ??????????????????? # ??????????? | | ???????????????????+######+########### ??????????? | | ??????????????????? # ##### ??????????? | | ?????????????????????????????????????????????????? | | ?????????????????????????????????????????????????? | | ?????????????????????????????????????????????????? | | ?????????????????????????????????????????????????? | | ?????????????????????????????????????????????????? | | ?????????????????????????????????????????????????? | | ?????????????????????????????????????????????????? | | ?????????????????????????????????????????????????? | | ?????????????????????????????????????????????????? | | ?????????????????????????????????????????????????? | | ?????????????????????????????????????????????????? | | ?????????????????????????????????????????????????? | +----------------------------------------------------+ Best States ------------- Heat Dissipation 28 Energy Generation 14 Energy Capacity 250 Matter Stores 300 Matter Capacity 300 Sight Range 16 Terrain Scan Density 10 Evasion (%) 62 Recoil Reduction 2 Item Schematics ----------------- None Robot Schematics ------------------ None Fabricated ------------ Nothing Alien Tech Used ----------------- None Achievements -------------- None Challenges ------------ None Game ------ Seed HardcellChainPerforator Manual? 0 Play Time 00:16:52 Cumulative 63.5 hours Start 2024.05.07 @ 18:13:34 End 2024.05.07 @ 18:30:48 Sessions 1 Manual Loads 0 Difficulty Rogue Special Mode None Game No. 93 Rogue 93 Adventurer 0 Explorer 0 Win Type - Total 1 Types 1/0/0/0/0/0/0/0/0 Lore% 31 Gallery% 39 Achievement% 30 Wizard Run 0 Options --------- Layout 1 ASCII 0 Keyboard 1 Movement Numpad Keybinds 0 Fullscreen 1 Font 24/Smallcaps Map View 50x35 Zoom Use 0% Tactical HUD 1 Map Filters NONE Filters NONE Steam 1 RUN: 4b6479c8-9f16-44db-b856-1655bf3e1fdd